[Event "January 9 Late 2024"]
[Site "https://www.chess.com"]
[Date "2024.01.09"]
[Round "1"]
[White "Yushko, Olga"]
[Black "Hajiyev, Kanan"]
[Result "0-1"]
[Board "229"]
[TimeControl "180+1"]
[WhiteFideId "14114500"]
[BlackFideId "13404148"]
[WhiteElo "2104"]
[BlackElo "2563"]
[WhiteTeam "UKR"]
[BlackTeam "AZE"]
[WhiteClock "0:00:00"]
[BlackClock "0:00:12"]

1. d4 {[%clk 0:02:58]}  d5 {[%clk 0:02:59]} 2. c4 {[%clk 0:02:59]}  c6 {[%clk 0:02:59]} 3. cxd5 {[%clk 0:02:58]}  cxd5 {[%clk 0:03:00]} 4. Nc3 {[%clk 0:02:58]}  Nf6 {[%clk 0:03:00]} 5. Nf3 {[%clk 0:02:56]}  a6 {[%clk 0:03:00]} 6. Bf4 {[%clk 0:02:56]}  Nc6 {[%clk 0:03:00]} 7. e3 {[%clk 0:02:57]}  Bg4 {[%clk 0:02:59]} 8. Bd3 {[%clk 0:02:56]}  e6 {[%clk 0:02:58]} 9. O-O {[%clk 0:02:57]}  Bd6 {[%clk 0:02:56]} 10. Bg5 {[%clk 0:02:55]}  O-O {[%clk 0:02:54]} 11. Na4 {[%clk 0:02:46]}  Qc7 {[%clk 0:02:45]} 12. h3 {[%clk 0:02:44]}  Bh5 {[%clk 0:02:44]} 13. Bxf6 {[%clk 0:02:42]}  gxf6 {[%clk 0:02:43]} 14. Rc1 {[%clk 0:02:26]}  Kh8 {[%clk 0:02:40]} 15. Bb1 {[%clk 0:02:24]}  Rg8 {[%clk 0:02:39]} 16. Nc5 {[%clk 0:02:18]}  Rg7 {[%clk 0:02:31]} 17. Kh1 {[%clk 0:02:13]}  Rag8 {[%clk 0:02:29]} 18. Qc2 {[%clk 0:01:41]}  Bxc5 {[%clk 0:01:29]} 19. dxc5 {[%clk 0:01:37]}  Bg6 {[%clk 0:01:29]} 20. Qe2 {[%clk 0:01:19]}  Bxb1 {[%clk 0:01:27]} 21. Rxb1 {[%clk 0:01:20]}  Rxg2 {[%clk 0:01:27]} 22. Rg1 {[%clk 0:01:18]}  R2g6 {[%clk 0:00:56]} 23. Rxg6 {[%clk 0:01:06]}  hxg6 {[%clk 0:00:56]} 24. Rg1 {[%clk 0:00:58]}  Kg7 {[%clk 0:00:54]} 25. Kg2 {[%clk 0:00:57]}  Rh8 {[%clk 0:00:54]} 26. Rh1 {[%clk 0:00:47]}  Ne5 {[%clk 0:00:54]} 27. Nxe5 {[%clk 0:00:44]}  fxe5 {[%clk 0:00:49]} 28. b4 {[%clk 0:00:41]}  Qc6 {[%clk 0:00:44]} 29. Qf3 {[%clk 0:00:32]}  Rh4 {[%clk 0:00:40]} 30. Qg3 {[%clk 0:00:28]}  Rh5 {[%clk 0:00:15]} 31. Rd1 {[%clk 0:00:20]}  Kf6 {[%clk 0:00:15]} 32. Qf3+ {[%clk 0:00:20]}  Rf5 {[%clk 0:00:15]} 33. Qg4 {[%clk 0:00:20]}  Rg5 {[%clk 0:00:15]} 34. Kg3 {[%clk 0:00:15]}  Rxg4+ {[%clk 0:00:13]} 35. hxg4 {[%clk 0:00:16]}  Qa4 {[%clk 0:00:13]} 36. Rb1 {[%clk 0:00:06]}  Qxa2 {[%clk 0:00:12]} 37. Rc1 {[%clk 0:00:00]}  Qb2 {[%clk 0:00:12]} 0-1

[Event "January 9 Late 2024"]
[Site "https://www.chess.com"]
[Date "2024.01.09"]
[Round "1"]
[White "De Souza, Arthur Olintho"]
[Black "Ferreira, Vitor Hugo Vieira"]
[Result "1-0"]
[Board "231"]
[TimeControl "180+1"]
[WhiteFideId "2116200"]
[BlackFideId "2119765"]
[WhiteElo "2079"]
[BlackElo "2559"]
[WhiteTeam "BRA"]
[BlackTeam "BRA"]
[WhiteClock "0:00:41"]
[BlackClock "0:00:00"]

1. e4 {[%clk 0:02:59]}  c5 {[%clk 0:02:59]} 2. Nc3 {[%clk 0:02:59]}  e6 {[%clk 0:02:57]} 3. Nge2 {[%clk 0:02:59]}  a6 {[%clk 0:02:57]} 4. a4 {[%clk 0:02:59]}  Nc6 {[%clk 0:02:54]} 5. g3 {[%clk 0:02:58]}  d5 {[%clk 0:02:51]} 6. exd5 {[%clk 0:02:58]}  exd5 {[%clk 0:02:50]} 7. d4 {[%clk 0:02:59]}  Nf6 {[%clk 0:02:44]} 8. Bg2 {[%clk 0:02:40]}  Bg4 {[%clk 0:02:43]} 9. dxc5 {[%clk 0:02:37]}  Bxc5 {[%clk 0:02:42]} 10. O-O {[%clk 0:02:37]}  O-O {[%clk 0:02:41]} 11. h3 {[%clk 0:02:23]}  Be6 {[%clk 0:02:30]} 12. Nf4 {[%clk 0:02:03]}  d4 {[%clk 0:02:28]} 13. Ne4 {[%clk 0:02:02]}  Nxe4 {[%clk 0:02:28]} 14. Bxe4 {[%clk 0:02:03]}  Bd7 {[%clk 0:02:25]} 15. Qh5 {[%clk 0:02:01]}  f5 {[%clk 0:02:15]} 16. Bd5+ {[%clk 0:02:00]}  Rf7 {[%clk 0:02:02]} 17. Qxf7+ {[%clk 0:01:52]}  Kh8 {[%clk 0:02:02]} 18. Nh5 {[%clk 0:01:33]}  Qe7 {[%clk 0:01:44]} 19. Qxe7 {[%clk 0:01:26]}  Nxe7 {[%clk 0:01:43]} 20. Bxb7 {[%clk 0:01:25]}  Ra7 {[%clk 0:01:44]} 21. Bg2 {[%clk 0:01:24]}  g6 {[%clk 0:01:42]} 22. Nf6 {[%clk 0:01:23]}  Bc8 {[%clk 0:01:40]} 23. c3 {[%clk 0:01:20]}  Kg7 {[%clk 0:01:38]} 24. Nd5 {[%clk 0:01:19]}  Nc6 {[%clk 0:01:34]} 25. b4 {[%clk 0:01:17]}  Bf8 {[%clk 0:01:33]} 26. cxd4 {[%clk 0:01:12]}  Nxd4 {[%clk 0:01:32]} 27. Be3 {[%clk 0:01:11]}  Nc2 {[%clk 0:01:29]} 28. Rac1 {[%clk 0:01:10]}  Nxe3 {[%clk 0:01:29]} 29. fxe3 {[%clk 0:01:09]}  Bd7 {[%clk 0:01:23]} 30. Rc7 {[%clk 0:01:06]}  Rxc7 {[%clk 0:01:23]} 31. Nxc7 {[%clk 0:01:07]}  Bxb4 {[%clk 0:01:24]} 32. Nxa6 {[%clk 0:01:07]}  Bd2 {[%clk 0:01:23]} 33. Kf2 {[%clk 0:01:05]}  Bxa4 {[%clk 0:01:22]} 34. Nc5 {[%clk 0:01:03]}  Bb5 {[%clk 0:01:16]} 35. Rd1 {[%clk 0:01:02]}  Bb4 {[%clk 0:01:16]} 36. Ne6+ {[%clk 0:01:02]}  Kf6 {[%clk 0:01:16]} 37. Rb1 {[%clk 0:01:01]}  Bd3 {[%clk 0:01:05]} 38. Rxb4 {[%clk 0:00:57]}  Kxe6 {[%clk 0:01:04]} 39. Rb7 {[%clk 0:00:57]}  h5 {[%clk 0:01:04]} 40. Rb6+ {[%clk 0:00:55]}  Kf7 {[%clk 0:01:05]} 41. Bd5+ {[%clk 0:00:54]}  Kg7 {[%clk 0:01:04]} 42. Kf3 {[%clk 0:00:55]}  g5 {[%clk 0:01:04]} 43. Be6 {[%clk 0:00:51]}  Be4+ {[%clk 0:01:03]} 44. Kf2 {[%clk 0:00:52]}  Kf6 {[%clk 0:01:02]} 45. Bd5+ {[%clk 0:00:50]}  Ke5 {[%clk 0:01:03]} 46. Bxe4 {[%clk 0:00:50]}  Kxe4 {[%clk 0:01:02]} 47. Rg6 {[%clk 0:00:50]}  g4 {[%clk 0:01:03]} 48. h4 {[%clk 0:00:50]}  f4 {[%clk 0:00:05]} 49. exf4 {[%clk 0:00:51]}  Kf5 {[%clk 0:00:05]} 50. Rg5+ {[%clk 0:00:47]}  Kf6 {[%clk 0:00:05]} 51. Rxh5 {[%clk 0:00:46]}  Kf7 {[%clk 0:00:05]} 52. Rg5 {[%clk 0:00:46]}  Kf6 {[%clk 0:00:05]} 53. h5 {[%clk 0:00:47]}  Kf7 {[%clk 0:00:05]} 54. h6 {[%clk 0:00:47]}  Ke6 {[%clk 0:00:04]} 55. h7 {[%clk 0:00:46]}  Kf7 {[%clk 0:00:04]} 56. h8=Q {[%clk 0:00:45]}  Ke6 {[%clk 0:00:00]} 57. Qh6+ {[%clk 0:00:41]} 1-0

[Event "January 9 Late 2024"]
[Site "https://www.chess.com"]
[Date "2024.01.10"]
[Round "1"]
[White "Przybylski, Wojciech"]
[Black "Mena, Martin"]
[Result "0-1"]
[Board "232"]
[TimeControl "180+1"]
[WhiteFideId "1117599"]
[BlackFideId "10651225"]
[WhiteElo "2558"]
[BlackElo "2075"]
[WhiteTeam "POL"]
[BlackTeam "EGY"]
[WhiteClock "0:00:05"]
[BlackClock "0:00:01"]

1. d4 {[%clk 0:03:00]}  d5 {[%clk 0:02:59]} 2. g3 {[%clk 0:03:00]}  Nf6 {[%clk 0:02:58]} 3. Bg2 {[%clk 0:03:00]}  e6 {[%clk 0:02:58]} 4. Nf3 {[%clk 0:03:00]}  Be7 {[%clk 0:02:58]} 5. O-O {[%clk 0:03:00]}  O-O {[%clk 0:02:58]} 6. a4 {[%clk 0:02:59]}  b6 {[%clk 0:02:45]} 7. Re1 {[%clk 0:02:57]}  Bb7 {[%clk 0:02:43]} 8. Nbd2 {[%clk 0:02:55]}  a5 {[%clk 0:02:38]} 9. Ne5 {[%clk 0:02:53]}  Nbd7 {[%clk 0:02:32]} 10. c4 {[%clk 0:02:52]}  c5 {[%clk 0:02:18]} 11. e3 {[%clk 0:02:47]}  Qc7 {[%clk 0:02:14]} 12. f4 {[%clk 0:02:39]}  Rfd8 {[%clk 0:01:49]} 13. b3 {[%clk 0:02:36]}  Nxe5 {[%clk 0:01:37]} 14. fxe5 {[%clk 0:02:35]}  Ne4 {[%clk 0:01:36]} 15. Bb2 {[%clk 0:02:27]}  Nxd2 {[%clk 0:00:58]} 16. Qxd2 {[%clk 0:02:26]}  dxc4 {[%clk 0:00:58]} 17. Bxb7 {[%clk 0:02:18]}  c3 {[%clk 0:00:59]} 18. Bxc3 {[%clk 0:01:32]}  Qxb7 {[%clk 0:00:58]} 19. Rf1 {[%clk 0:01:27]}  Bg5 {[%clk 0:00:49]} 20. Qf2 {[%clk 0:01:26]}  Rd7 {[%clk 0:00:42]} 21. h4 {[%clk 0:01:21]}  Bh6 {[%clk 0:00:41]} 22. Qf3 {[%clk 0:01:10]}  Qd5 {[%clk 0:00:20]} 23. g4 {[%clk 0:01:01]}  Bxe3+ {[%clk 0:00:18]} 24. Qxe3 {[%clk 0:00:50]}  cxd4 {[%clk 0:00:19]} 25. Bxd4 {[%clk 0:00:09]}  Qxd4 {[%clk 0:00:20]} 26. Qxd4 {[%clk 0:00:03]}  Rxd4 {[%clk 0:00:21]} 27. Rad1 {[%clk 0:00:03]}  Rxg4+ {[%clk 0:00:21]} 28. Kf2 {[%clk 0:00:03]}  Rf4+ {[%clk 0:00:21]} 29. Ke3 {[%clk 0:00:03]}  Rxf1 {[%clk 0:00:21]} 30. Rxf1 {[%clk 0:00:04]}  g6 {[%clk 0:00:20]} 31. Rc1 {[%clk 0:00:04]}  Rb8 {[%clk 0:00:18]} 32. Rc7 {[%clk 0:00:04]}  b5 {[%clk 0:00:18]} 33. Ra7 {[%clk 0:00:03]}  bxa4 {[%clk 0:00:17]} 34. bxa4 {[%clk 0:00:04]}  Rb3+ {[%clk 0:00:17]} 35. Kd2 {[%clk 0:00:03]}  Rb4 {[%clk 0:00:17]} 36. Rxa5 {[%clk 0:00:04]}  Rxh4 {[%clk 0:00:18]} 37. Kc3 {[%clk 0:00:04]}  Re4 {[%clk 0:00:15]} 38. Kb3 {[%clk 0:00:03]}  h5 {[%clk 0:00:16]} 39. Rb5 {[%clk 0:00:04]}  h4 {[%clk 0:00:15]} 40. Rc5 {[%clk 0:00:04]}  h3 {[%clk 0:00:13]} 41. a5 {[%clk 0:00:04]}  h2 {[%clk 0:00:12]} 42. Rc1 {[%clk 0:00:05]}  Rxe5 {[%clk 0:00:12]} 43. Kb4 {[%clk 0:00:04]}  Rh5 {[%clk 0:00:11]} 44. Rh1 {[%clk 0:00:04]}  g5 {[%clk 0:00:06]} 45. a6 {[%clk 0:00:05]}  Kg7 {[%clk 0:00:05]} 46. a7 {[%clk 0:00:05]}  Rh8 {[%clk 0:00:05]} 47. Rxh2 {[%clk 0:00:05]}  Ra8 {[%clk 0:00:03]} 48. Ra2 {[%clk 0:00:05]}  g4 {[%clk 0:00:03]} 49. Kb5 {[%clk 0:00:05]}  f5 {[%clk 0:00:03]} 50. Kc6 {[%clk 0:00:05]}  f4 {[%clk 0:00:02]} 51. Kd6 {[%clk 0:00:05]}  g3 {[%clk 0:00:01]} 52. Ke5 {[%clk 0:00:05]}  f3 {[%clk 0:00:02]} 53. Kf4 {[%clk 0:00:05]}  f2 {[%clk 0:00:02]} 54. Ra1 {[%clk 0:00:05]}  g2 {[%clk 0:00:02]} 55. Kg3 {[%clk 0:00:05]}  f1=Q {[%clk 0:00:02]} 56. Ra4 {[%clk 0:00:06]}  g1=Q+ {[%clk 0:00:02]} 57. Kh4 {[%clk 0:00:06]}  Qh1+ {[%clk 0:00:01]} 58. Kg5 {[%clk 0:00:05]}  Qf5# {[%clk 0:00:01]} 0-1

[Event "January 9 Late 2024"]
[Site "https://www.chess.com"]
[Date "2024.01.10"]
[Round "1"]
[White "Keuchel, Destynn"]
[Black "Kandil, Ahmed"]
[Result "0-1"]
[Board "233"]
[TimeControl "180+1"]
[WhiteFideId "30923018"]
[BlackFideId "10628401"]
[WhiteElo "2060"]
[BlackElo "2558"]
[WhiteTeam "USA"]
[BlackTeam "EGY"]
[WhiteClock "0:02:42"]
[BlackClock "0:02:17"]

1. e4 {[%clk 0:02:59]}  e5 {[%clk 0:02:56]} 2. Nf3 {[%clk 0:02:59]}  Nc6 {[%clk 0:02:54]} 3. Bc4 {[%clk 0:02:59]}  Nf6 {[%clk 0:02:53]} 4. Ng5 {[%clk 0:02:59]}  d5 {[%clk 0:02:52]} 5. exd5 {[%clk 0:03:00]}  Na5 {[%clk 0:02:52]} 6. d3 {[%clk 0:03:00]}  h6 {[%clk 0:02:49]} 7. Nf3 {[%clk 0:03:00]}  e4 {[%clk 0:02:49]} 8. Qe2 {[%clk 0:03:00]}  Nxc4 {[%clk 0:02:47]} 9. dxc4 {[%clk 0:03:00]}  Be7 {[%clk 0:02:48]} 10. Nfd2 {[%clk 0:02:57]}  O-O {[%clk 0:02:47]} 11. O-O {[%clk 0:02:56]}  Bd6 {[%clk 0:02:46]} 12. Nxe4 {[%clk 0:02:53]}  Nxe4 {[%clk 0:02:34]} 13. Qxe4 {[%clk 0:02:53]}  Bd7 {[%clk 0:02:35]} 14. Bf4 {[%clk 0:02:51]}  Re8 {[%clk 0:02:25]} 15. Qf3 {[%clk 0:02:51]}  Qf6 {[%clk 0:02:25]} 16. Bxd6 {[%clk 0:02:50]}  Qxb2 {[%clk 0:02:20]} 17. Qc3 {[%clk 0:02:51]}  Qxc3 {[%clk 0:02:19]} 18. Nxc3 {[%clk 0:02:51]}  cxd6 {[%clk 0:02:19]} 19. Rfe1 {[%clk 0:02:52]}  Rec8 {[%clk 0:02:18]} 20. Rab1 {[%clk 0:02:49]}  Rxc4 {[%clk 0:02:17]} 21. Rxb7 {[%clk 0:02:48]}  Rxc3 {[%clk 0:02:17]} 22. Rxd7 {[%clk 0:02:49]}  Rxc2 {[%clk 0:02:18]} 23. Rxd6 {[%clk 0:02:48]}  Rxa2 {[%clk 0:02:18]} 24. Rd7 {[%clk 0:02:46]}  Rd2 {[%clk 0:02:18]} 25. Ree7 {[%clk 0:02:42]}  Rd1+ {[%clk 0:02:17]} 0-1

[Event "January 9 Late 2024"]
[Site "https://www.chess.com"]
[Date "2024.01.09"]
[Round "1"]
[White "Tan, Ralph"]
[Black "Fareh, Youness"]
[Result "1-0"]
[Board "236"]
[TimeControl "180+1"]
[WhiteFideId "30966590"]
[BlackFideId "9000526"]
[WhiteElo "2556"]
[BlackElo "2027"]
[WhiteTeam "USA"]
[BlackTeam "MAR"]
[WhiteClock "0:02:00"]
[BlackClock "0:01:00"]

1. e4 {[%clk 0:03:00]}  c5 {[%clk 0:02:59]} 2. Nf3 {[%clk 0:03:00]}  e6 {[%clk 0:02:58]} 3. c3 {[%clk 0:02:59]}  Nf6 {[%clk 0:02:55]} 4. e5 {[%clk 0:02:56]}  Nd5 {[%clk 0:02:54]} 5. d4 {[%clk 0:02:57]}  d6 {[%clk 0:02:52]} 6. Bb5+ {[%clk 0:02:53]}  Nc6 {[%clk 0:02:49]} 7. O-O {[%clk 0:02:53]}  a6 {[%clk 0:02:44]} 8. Bxc6+ {[%clk 0:02:50]}  bxc6 {[%clk 0:02:44]} 9. dxc5 {[%clk 0:02:49]}  dxc5 {[%clk 0:02:44]} 10. Nbd2 {[%clk 0:02:46]}  Be7 {[%clk 0:02:43]} 11. Ne4 {[%clk 0:02:45]}  O-O {[%clk 0:02:41]} 12. Qe2 {[%clk 0:02:42]}  Qb6 {[%clk 0:02:30]} 13. Rd1 {[%clk 0:02:38]}  Rb8 {[%clk 0:02:28]} 14. c4 {[%clk 0:02:34]}  f5 {[%clk 0:02:08]} 15. exf6 {[%clk 0:02:19]}  Nxf6 {[%clk 0:02:05]} 16. Neg5 {[%clk 0:02:18]}  Rd8 {[%clk 0:01:48]} 17. Rxd8+ {[%clk 0:02:04]}  Qxd8 {[%clk 0:01:45]} 18. Nxe6 {[%clk 0:02:04]}  Bxe6 {[%clk 0:01:44]} 19. Qxe6+ {[%clk 0:02:05]}  Kh8 {[%clk 0:01:40]} 20. Bf4 {[%clk 0:02:04]}  Rxb2 {[%clk 0:01:37]} 21. Ng5 {[%clk 0:02:04]}  Qd4 {[%clk 0:01:06]} 22. Nf7+ {[%clk 0:02:02]}  Kg8 {[%clk 0:01:05]} 23. Nh6+ {[%clk 0:02:02]}  Kh8 {[%clk 0:01:01]} 24. Qg8+ {[%clk 0:02:00]}  Nxg8 {[%clk 0:01:00]} 25. Nf7# {[%clk 0:02:00]} 1-0

[Event "January 9 Late 2024"]
[Site "https://www.chess.com"]
[Date "2024.01.09"]
[Round "1"]
[White "Reinecke, Katharina"]
[Black "Baltag, Iulian"]
[Result "0-1"]
[Board "237"]
[TimeControl "180+1"]
[WhiteFideId "12929727"]
[BlackFideId "13901419"]
[WhiteElo "2026"]
[BlackElo "2556"]
[WhiteTeam "GER"]
[BlackTeam "MDA"]
[WhiteClock "0:00:16"]
[BlackClock "0:00:35"]

1. e4 {[%clk 0:03:00]}  c5 {[%clk 0:02:59]} 2. Nf3 {[%clk 0:02:59]}  Nc6 {[%clk 0:02:58]} 3. Bb5 {[%clk 0:02:57]}  Nf6 {[%clk 0:02:58]} 4. Bxc6 {[%clk 0:02:55]}  dxc6 {[%clk 0:02:58]} 5. d3 {[%clk 0:02:48]}  Qc7 {[%clk 0:02:57]} 6. O-O {[%clk 0:02:42]}  e5 {[%clk 0:02:56]} 7. Be3 {[%clk 0:02:32]}  h6 {[%clk 0:02:53]} 8. h3 {[%clk 0:02:31]}  Be6 {[%clk 0:02:53]} 9. Nc3 {[%clk 0:02:19]}  Nd7 {[%clk 0:02:51]} 10. Ne2 {[%clk 0:02:04]}  g5 {[%clk 0:02:47]} 11. c3 {[%clk 0:01:52]}  O-O-O {[%clk 0:02:45]} 12. Qc2 {[%clk 0:01:51]}  f6 {[%clk 0:02:41]} 13. d4 {[%clk 0:01:50]}  h5 {[%clk 0:02:38]} 14. dxe5 {[%clk 0:01:48]}  g4 {[%clk 0:02:37]} 15. Nh4 {[%clk 0:01:23]}  gxh3 {[%clk 0:02:34]} 16. g3 {[%clk 0:01:23]}  Nxe5 {[%clk 0:02:32]} 17. Nf4 {[%clk 0:01:19]}  Bf7 {[%clk 0:02:26]} 18. Nxh3 {[%clk 0:01:13]}  Bd6 {[%clk 0:01:57]} 19. Rad1 {[%clk 0:01:10]}  Ng4 {[%clk 0:01:54]} 20. Bf4 {[%clk 0:01:06]}  Be5 {[%clk 0:01:47]} 21. Rxd8+ {[%clk 0:00:56]}  Rxd8 {[%clk 0:01:46]} 22. Rd1 {[%clk 0:00:55]}  Rg8 {[%clk 0:01:44]} 23. Qd3 {[%clk 0:00:49]}  Be6 {[%clk 0:01:16]} 24. Nf5 {[%clk 0:00:36]}  Bxf5 {[%clk 0:01:11]} 25. exf5 {[%clk 0:00:35]}  h4 {[%clk 0:01:12]} 26. Bxe5 {[%clk 0:00:33]}  Nxe5 {[%clk 0:01:11]} 27. Qe3 {[%clk 0:00:25]}  hxg3 {[%clk 0:01:09]} 28. fxg3 {[%clk 0:00:25]}  b6 {[%clk 0:00:49]} 29. Kg2 {[%clk 0:00:20]}  Kb7 {[%clk 0:00:38]} 30. Nf2 {[%clk 0:00:19]}  Nc4 {[%clk 0:00:36]} 31. Qf4 {[%clk 0:00:16]}  Qxf4 {[%clk 0:00:35]} 0-1

[Event "January 9 Late 2024"]
[Site "https://www.chess.com"]
[Date "2024.01.09"]
[Round "1"]
[White "Winkels, Marcel"]
[Black "Leenhouts, Koen"]
[Result "0-1"]
[Board "239"]
[TimeControl "180+1"]
[WhiteFideId "1003887"]
[BlackFideId "1008439"]
[WhiteElo "2003"]
[BlackElo "2554"]
[WhiteTeam "NED"]
[BlackTeam "NED"]
[WhiteClock "0:00:00"]
[BlackClock "0:02:16"]

1. e4 {[%clk 0:02:58]}  e5 {[%clk 0:02:59]} 2. Nf3 {[%clk 0:02:57]}  d6 {[%clk 0:02:59]} 3. d4 {[%clk 0:02:55]}  exd4 {[%clk 0:03:00]} 4. Nxd4 {[%clk 0:02:53]}  Nf6 {[%clk 0:03:01]} 5. Nc3 {[%clk 0:02:53]}  Be7 {[%clk 0:03:01]} 6. f3 {[%clk 0:02:48]}  O-O {[%clk 0:03:00]} 7. Be3 {[%clk 0:02:47]}  d5 {[%clk 0:02:59]} 8. e5 {[%clk 0:02:10]}  c5 {[%clk 0:02:58]} 9. exf6 {[%clk 0:02:02]}  Bxf6 {[%clk 0:02:59]} 10. Nb3 {[%clk 0:01:51]}  d4 {[%clk 0:02:58]} 11. Ne4 {[%clk 0:01:34]}  dxe3 {[%clk 0:02:55]} 12. Qxd8 {[%clk 0:01:29]}  Bxd8 {[%clk 0:02:56]} 13. Nbxc5 {[%clk 0:00:56]}  b6 {[%clk 0:02:54]} 14. Bc4 {[%clk 0:00:40]}  bxc5 {[%clk 0:02:43]} 15. Bd5 {[%clk 0:00:39]}  Nc6 {[%clk 0:02:35]} 16. Bxc6 {[%clk 0:00:38]}  Rb8 {[%clk 0:02:36]} 17. O-O-O {[%clk 0:00:32]}  Be7 {[%clk 0:02:29]} 18. Rhe1 {[%clk 0:00:28]}  f5 {[%clk 0:02:24]} 19. Nd6 {[%clk 0:00:23]}  Be6 {[%clk 0:02:24]} 20. Kb1 {[%clk 0:00:19]}  f4 {[%clk 0:02:21]} 21. b3 {[%clk 0:00:00]}  Rb6 {[%clk 0:02:16]} 0-1

[Event "January 9 Late 2024"]
[Site "https://www.chess.com"]
[Date "2024.01.09"]
[Round "1"]
[White "Smirnov, Timofey"]
[Black "Cruz Mendez, Jean Marco"]
[Result "0-1"]
[Board "241"]
[TimeControl "180+1"]
[WhiteFideId "24176427"]
[BlackFideId "3526402"]
[WhiteElo "1992"]
[BlackElo "2553"]
[WhiteTeam "RUS"]
[BlackTeam "CUB"]
[WhiteClock "0:00:00"]
[BlackClock "0:00:30"]

1. e4 {[%clk 0:02:59]}  c5 {[%clk 0:02:58]} 2. c3 {[%clk 0:02:59]}  Nf6 {[%clk 0:02:56]} 3. e5 {[%clk 0:02:58]}  Nd5 {[%clk 0:02:56]} 4. d4 {[%clk 0:02:58]}  cxd4 {[%clk 0:02:57]} 5. Nf3 {[%clk 0:02:58]}  Nc6 {[%clk 0:02:57]} 6. cxd4 {[%clk 0:02:54]}  d6 {[%clk 0:02:53]} 7. Bb5 {[%clk 0:02:46]}  Qa5+ {[%clk 0:02:28]} 8. Nc3 {[%clk 0:02:42]}  Nxc3 {[%clk 0:02:28]} 9. Bxc6+ {[%clk 0:02:42]}  bxc6 {[%clk 0:02:29]} 10. bxc3 {[%clk 0:02:40]}  Qxc3+ {[%clk 0:02:28]} 11. Bd2 {[%clk 0:02:40]}  Qc4 {[%clk 0:02:28]} 12. Rc1 {[%clk 0:02:36]}  Qa6 {[%clk 0:02:27]} 13. exd6 {[%clk 0:02:31]}  exd6 {[%clk 0:02:28]} 14. Qe2+ {[%clk 0:02:19]}  Qxe2+ {[%clk 0:02:26]} 15. Kxe2 {[%clk 0:02:20]}  Ba6+ {[%clk 0:02:25]} 16. Kd1 {[%clk 0:02:15]}  Kd7 {[%clk 0:02:16]} 17. Re1 {[%clk 0:02:13]}  Be7 {[%clk 0:02:15]} 18. Ng5 {[%clk 0:02:07]}  h6 {[%clk 0:02:11]} 19. Ne4 {[%clk 0:01:38]}  Rab8 {[%clk 0:02:08]} 20. Kc2 {[%clk 0:01:36]}  Rhe8 {[%clk 0:01:59]} 21. Rb1 {[%clk 0:01:36]}  Bc4 {[%clk 0:01:40]} 22. Bf4 {[%clk 0:01:24]}  Rxb1 {[%clk 0:00:43]} 23. Rxb1 {[%clk 0:01:24]}  Bxa2 {[%clk 0:00:42]} 24. Ra1 {[%clk 0:01:24]}  Bd5 {[%clk 0:00:37]} 25. Rxa7+ {[%clk 0:01:23]}  Ke6 {[%clk 0:00:37]} 26. Nc3 {[%clk 0:01:09]}  Bxg2 {[%clk 0:00:37]} 27. Ra6 {[%clk 0:00:29]}  g5 {[%clk 0:00:34]} 28. Be3 {[%clk 0:00:28]}  f5 {[%clk 0:00:33]} 29. Ne2 {[%clk 0:00:22]}  Bf6 {[%clk 0:00:29]} 30. Ra7 {[%clk 0:00:13]}  f4 {[%clk 0:00:28]} 31. Bxf4 {[%clk 0:00:12]}  Be4+ {[%clk 0:00:28]} 32. Kc3 {[%clk 0:00:04]}  gxf4 {[%clk 0:00:29]} 33. Nxf4+ {[%clk 0:00:00]}  Kf5 {[%clk 0:00:30]} 0-1

[Event "January 9 Late 2024"]
[Site "https://www.chess.com"]
[Date "2024.01.09"]
[Round "2"]
[White "Dyachuk, Artem"]
[Black "Firouzja, Alireza"]
[Result "0-1"]
[Board "2"]
[TimeControl "180+1"]
[WhiteFideId "34107924"]
[BlackFideId "12573981"]
[WhiteElo "2698"]
[BlackElo "3165"]
[WhiteTeam "UKR"]
[BlackTeam "FRA"]
[WhiteClock "0:00:04"]
[BlackClock "0:01:41"]

1. e4 {[%clk 0:03:00]}  c5 {[%clk 0:03:00]} 2. Nf3 {[%clk 0:03:00]}  d6 {[%clk 0:03:01]} 3. d4 {[%clk 0:03:00]}  cxd4 {[%clk 0:03:02]} 4. Nxd4 {[%clk 0:03:01]}  Nf6 {[%clk 0:03:02]} 5. Nc3 {[%clk 0:03:02]}  Nc6 {[%clk 0:03:03]} 6. Bg5 {[%clk 0:02:58]}  Bd7 {[%clk 0:03:01]} 7. Qd2 {[%clk 0:02:56]}  a6 {[%clk 0:03:01]} 8. O-O-O {[%clk 0:02:56]}  e6 {[%clk 0:03:01]} 9. f4 {[%clk 0:02:50]}  b5 {[%clk 0:03:01]} 10. Bxf6 {[%clk 0:02:28]}  gxf6 {[%clk 0:03:00]} 11. f5 {[%clk 0:02:22]}  Nxd4 {[%clk 0:02:59]} 12. Qxd4 {[%clk 0:02:22]}  Bh6+ {[%clk 0:02:59]} 13. Kb1 {[%clk 0:02:22]}  Bf4 {[%clk 0:03:00]} 14. Ne2 {[%clk 0:02:18]}  Be5 {[%clk 0:03:00]} 15. Qe3 {[%clk 0:02:19]}  Qc7 {[%clk 0:02:58]} 16. Nf4 {[%clk 0:02:05]}  Rc8 {[%clk 0:02:55]} 17. Rd2 {[%clk 0:02:04]}  Qc5 {[%clk 0:02:53]} 18. Qxc5 {[%clk 0:01:55]}  dxc5 {[%clk 0:02:48]} 19. fxe6 {[%clk 0:01:48]}  fxe6 {[%clk 0:02:47]} 20. g3 {[%clk 0:01:49]}  Ke7 {[%clk 0:02:39]} 21. Bh3 {[%clk 0:01:48]}  Rc7 {[%clk 0:02:38]} 22. Rhd1 {[%clk 0:01:46]}  c4 {[%clk 0:02:38]} 23. c3 {[%clk 0:01:40]}  Bc8 {[%clk 0:02:30]} 24. a3 {[%clk 0:01:19]}  Rg8 {[%clk 0:02:28]} 25. Kc1 {[%clk 0:01:17]}  Rc5 {[%clk 0:02:28]} 26. Ne2 {[%clk 0:01:07]}  Rc7 {[%clk 0:02:22]} 27. Nd4 {[%clk 0:00:54]}  Bxd4 {[%clk 0:02:16]} 28. cxd4 {[%clk 0:00:49]}  c3 {[%clk 0:02:16]} 29. bxc3 {[%clk 0:00:48]}  Rxc3+ {[%clk 0:02:16]} 30. Kb2 {[%clk 0:00:49]}  Re3 {[%clk 0:02:14]} 31. Rc2 {[%clk 0:00:31]}  Rxe4 {[%clk 0:02:00]} 32. Rc7+ {[%clk 0:00:28]}  Kd6 {[%clk 0:01:59]} 33. Rdc1 {[%clk 0:00:20]}  Re2+ {[%clk 0:01:56]} 34. Kb3 {[%clk 0:00:16]}  Rxh2 {[%clk 0:01:50]} 35. Rxh7 {[%clk 0:00:07]}  Rxg3+ {[%clk 0:01:48]} 36. Kb4 {[%clk 0:00:06]}  Bd7 {[%clk 0:01:46]} 37. d5 {[%clk 0:00:02]}  Rhxh3 {[%clk 0:01:42]} 38. dxe6 {[%clk 0:00:02]}  Rxh7 {[%clk 0:01:41]} 39. exd7 {[%clk 0:00:02]}  Rxd7 {[%clk 0:01:40]} 40. a4 {[%clk 0:00:02]}  Rg4+ {[%clk 0:01:40]} 41. Ka5 {[%clk 0:00:03]}  Rxa4+ {[%clk 0:01:41]} 42. Kb6 {[%clk 0:00:03]}  Rd4 {[%clk 0:01:41]} 43. Ra1 {[%clk 0:00:02]}  Ke5 {[%clk 0:01:41]} 44. Ra4 {[%clk 0:00:01]}  Rxa4 {[%clk 0:01:41]} 45. Kc6 {[%clk 0:00:02]}  Rc4+ {[%clk 0:01:41]} 46. Kb6 {[%clk 0:00:02]}  b4 {[%clk 0:01:41]} 47. Ka5 {[%clk 0:00:03]}  b3 {[%clk 0:01:41]} 48. Kb6 {[%clk 0:00:03]}  b2 {[%clk 0:01:41]} 49. Ka5 {[%clk 0:00:04]}  b1=Q {[%clk 0:01:41]} 50. Kxa6 {[%clk 0:00:04]}  Ra4# {[%clk 0:01:41]} 0-1